Cogmind - Beta 17 @@@ ROGUE MODE // 2026.06.28 @ 15:09:26 Player: APerTAS Result: Destroyed by as-80238 with Assembled Blade Performance ------------- Evolutions (0) 0 Regions Visited (4) 800 Robots Destroyed (1) 5 Value Destroyed (0) 0 Prototype IDs (23) 460 Alien Tech Used (0) 0 Bonus (170) 170 TOTAL SCORE: 1435 Bonus ------- Aligned with FarCom 300 Friendly Fire -130 Cogmind --------- Core Integrity 0/250 Matter 290/300 Energy 80/100 System Corruption 0% Temperature Cool (0) Movement Core (50) Location -9/Mines Parts ------- > --- POWER (1) -------- (None) > --- PROPULSION (2) --- (None) > --- UTILITY (2) ------ (None) > --- WEAPON (2) ------- Longsword +1 > --- INVENTORY (5) ---- Makeshift Power Source Makeshift Axe Peak State ------------ > --- POWER ------------ Makeshift Power Source > --- PROPULSION ------- (None) > --- UTILITY ---------- (None) > --- WEAPON ----------- Longsword +1 > --- INVENTORY -------- (None) [Rating: 12] Favorites ----------- Power Makeshift Power Source Engine Makeshift Power Source Propulsion None Utility None Weapon Longsword +1 Slashing Weapon Longsword +1 Build | -11 -10 -10 -10 -9 ------- Run | Yrd Mat Min Exi Min Slots Evolved . | . . . . . Power . | . . . . . Propulsion . | . . . . . Utility . | . . . . . Weapon . | . . . . . Parts Attached 2 | . . . . 2 Power 1 | . . . . 1 Engine 1 | . . . . 1 Core . | . . . . . Reactor . | . . . . . Propulsion . | . . . . . Treads . | . . . . . Leg . | . . . . . Wheel . | . . . . . Hover . | . . . . . Flight . | . . . . . Utility . | . . . . . Device . | . . . . . Storage . | . . . . . Processor . | . . . . . Hackware . | . . . . . Protection . | . . . . . Artifact . | . . . . . Weapon 1 | . . . . 1 Energy Gun . | . . . . . Energy Cannon . | . . . . . Ballistic Gun . | . . . . . Ballistic Cannon . | . . . . . Launcher . | . . . . . Special Weapon . | . . . . . Impact Weapon . | . . . . . Slashing Weapon 1 | . . . . 1 Piercing Weapon . | . . . . . Special Melee Weapon . | . . . . . Unidentified Prototypes . | . . . . . Parts Lost . | . . . . . Power . | . . . . . Propulsion . | . . . . . Utility . | . . . . . Weapon . | . . . . . Highest Loss Streak . | . . . . . To Critical Strikes . | . . . . . Average Backups . | . . . . 2 Power . | . . . . . Propulsion . | . . . . . Utility . | . . . . . Weapon . | . . . . 1 Tool/Special . | . . . . . Unused Backups 2 | . . . . 2 Power . | . . . . . Propulsion . | . . . . . Utility . | . . . . . Weapon 2 | . . . . 2 Tool/Special . | . . . . . Average Slot Usage (%) 1 | . . . . 6 Peak Build Rating 12 | . . . . 12 Average Rating . | . . . . 3 On Entrance . | . . . . . Avg Prop Armor Cover (%) . | . . . . . Naked Turns 262 | . 21 84 115 42 Heaviest Build 7 | . . . . 7 Greatest Support 3 | 3 3 3 3 3 Greatest Overweight (x) 2 | . . . . 2 Average Overweight (x) . | . . . . . Largest Inventory Capacity 5 | 5 5 5 5 5 Average Capacity 5 | 5 5 5 5 5 Most Carried 3 | . . . 1 3 Average Carried . | . . . . 2 Final Capacity 5 | 5 5 5 5 5 Final Carried 2 | . . . 1 2 Class Distribution -------------------- 100% | Mutant Dominant Class ---------------- Mutant | -10/Materials Mutant | -10/Mines Mutant | -10/Exiles Mutant | -9/Mines Resources | -11 -10 -10 -10 -9 ----------- Run | Yrd Mat Min Exi Min Matter Collected 220 | 183 . 17 . 20 Remotely . | . . . . . Salvage Created 27 | . . . . 27 Parts 2 | . . . . 2 Haulers Intercepted . | . . . . . Recyclers Shooed . | . . . . . Parts Field Recycled . | . . . . . Retrieved Matter . | . . . . . Parts Self-Destructed . | . . . . . Prevented . | . . . . . Parts Restored . | . . . . . Kills | -11 -10 -10 -10 -9 ------- Run | Yrd Mat Min Exi Min Combat Hostiles Destroyed . | . . . . . Classes Destroyed 1 | . . . . 1 Zionite 1 | . . . . 1 Best Kill Streak . | . . . . . Combat Bots Only . | . . . . . Max Kills in Single Turn 1 | . . . . 1 Gunslinging . | . . . . . Exploded . | . . . . . Melee . | . . . . . Uniques/NPCs Destroyed . | . . . . . Combat | -11 -10 -10 -10 -9 -------- Run | Yrd Mat Min Exi Min Hostile Shots Fired 27 | . . 19 . 8 Missed 11 | . . 8 . 3 Hits 16 | . . 11 . 5 Melee 2 | . . . . 2 Projectile 14 | . . 11 . 3 Critical Strikes 1 | . . . . 1 Damage Taken 251 | . . 143 . 108 Core 251 | . . 143 . 108 Absorbed by Shields . | . . . . . Core Remaining (%) 100 | 100 . . . . Volleys Fired . | . . . . . Largest . | . . . . . Hottest . | . . . . . Shots Fired . | . . . . . Gun . | . . . . . Cannon . | . . . . . Launcher . | . . . . . Special . | . . . . . Kinetic . | . . . . . Thermal . | . . . . . Explosive . | . . . . . Electromagnetic . | . . . . . Robot Hit Streak . | . . . . . Robot Miss Streak . | . . . . . Penetration Max . | . . . . . Secondary Targets . | . . . . . Shots Hit Robots 1 | . . . . 1 Core Hits 1 | . . . . 1 Critical Kills . | . . . . . Critical Parts Destroyed . | . . . . . Critical Strikes . | . . . . . Melee Attacks 1 | . . . . 1 Impact . | . . . . . Slashing 1 | . . . . 1 Piercing . | . . . . . Sneak Attacks 1 | . . . . 1 Combat Hostiles . | . . . . . Follow-up Attacks . | . . . . . Damage Inflicted 118 | . . . . 118 Guns . | . . . . . Cannons . | . . . . . Explosions . | . . . . . Melee 110 | . . . . 110 Ramming 8 | . . . . 8 Kinetic . | . . . . . Thermal . | . . . . . Explosive . | . . . . . Electromagnetic . | . . . . . Impact . | . . . . . Slashing 110 | . . . . 110 Piercing . | . . . . . Highest Corruption . | . . . . . Average Corruption . | . . . . . Corruption Purged . | . . . . . Corruption Blocked . | . . . . . Overload Shots . | . . . . . Overflow Damage . | . . . . . Projectiles . | . . . . . Explosions . | . . . . . Melee . | . . . . . Knockbacks . | . . . . . Impact . | . . . . . Kinetic . | . . . . . Secondary . | . . . . . Self-Inflicted Damage 3 | . . . . 3 Shots . | . . . . . Rammed 4 | . . . . 4 Targets Rammed 4 | . . . . 4 Kicked . | . . . . . Crushed . | . . . . . Highest Temperature . | . . . . . Average Temperature . | . . . . . Received Heat Transfer 84 | . . 84 . . Siege Activations . | . . . . . Martial Activations . | . . . . . Shielding Activations . | . . . . . Robots Disrupted . | . . . . . Combat Hostiles . | . . . . . Robots Corrupted . | . . . . . Combat Hostiles . | . . . . . Parts Fried . | . . . . . Impact Corruptions . | . . . . . Robots Melted . | . . . . . Combat Hostiles . | . . . . . Parts Melted . | . . . . . Heat Transferred . | . . . . . Parts Sabotaged . | . . . . . Parts Stolen . | . . . . . Parts Stripped . | . . . . . Power Chain Reactions . | . . . . . Alert | -11 -10 -10 -10 -9 ------- Run | Yrd Mat Min Exi Min Maximum Alert Level . | . . . . . Low Security (%) 100 | 100 100 100 . 100 Level 1 . | . . . . . Level 2 . | . . . . . Level 3 . | . . . . . Level 4 . | . . . . . Level 5 . | . . . . . High Security . | . . . . . Max Security . | . . . . . Peak Influence 30 | . . 30 . . Initial . | . . . . . Average 3 | . . 7 . . Influence Increases 30 | . . 30 . . Lose Combat Pursuer 30 | . . 30 . . Influence Decreases 30 | . . 30 . . Time Decay 30 | . . 30 . . Squads Dispatched . | . . . . . Investigation . | . . . . . Extermination . | . . . . . Reinforcement . | . . . . . Assault . | . . . . . Garrison . | . . . . . Intercept . | . . . . . Searches Triggered . | . . . . . Construction Impeded . | . . . . . Haulers Reinforced . | . . . . . Active Scanning Responses . | . . . . . Cargo Convoy Interrupts . | . . . . . Stealth | -11 -10 -10 -10 -9 --------- Run | Yrd Mat Min Exi Min Distress Signals . | . . . . . Communications Jammed . | . . . . . Distress Signals . | . . . . . Times Spotted 7 | . . 4 . 3 Peak Tracking Total 6 | . . 2 . 6 Tactical Retreats 2 | . . 1 . 1 Traps | -11 -10 -10 -10 -9 ------- Run | Yrd Mat Min Exi Min Traps Triggered . | . . . . . Indirectly . | . . . . . Trap Hack Attempts . | . . . . . Triggered . | . . . . . Disarmed . | . . . . . Reprogrammed . | . . . . . Reused . | . . . . . Traps Extracted . | . . . . . Installed . | . . . . . Triggered . | . . . . . Machines | -11 -10 -10 -10 -9 ---------- Run | Yrd Mat Min Exi Min Machines Disabled . | . . . . . Max in Single Turn . | . . . . . Machines Repaired . | . . . . . Machines Dismantled . | . . . . . Machines Sabotaged . | . . . . . Overloaded Fab Kills . | . . . . . Hacking | -11 -10 -10 -10 -9 --------- Run | Yrd Mat Min Exi Min Machines Accessed 3 | . . . 3 . Terminals . | . . . . . Fabricators . | . . . . . Repair Stations . | . . . . . Recycling Units . | . . . . . Scanalyzers . | . . . . . Garrison Access . | . . . . . Total Hacks 11 | . . . 11 . Successful 11 | . . . 11 . Failed . | . . . . . Catastrophic . | . . . . . Database Lockouts . | . . . . . Manual 1 | . . . 1 . Terminals . | . . . . . Fabricators . | . . . . . Repair Stations . | . . . . . Recycling Units . | . . . . . Scanalyzers . | . . . . . Garrison Access . | . . . . . Terminal Hacks 11 | . . . 11 . Record 10 | . . . 10 . Proto ID Catalog 1 | . . . 1 . Fabricator Hacks . | . . . . . Repair Station Hacks . | . . . . . Recycling Unit Hacks . | . . . . . Scanalyzer . | . . . . . Garrison Access Hacks . | . . . . . Unauthorized Hacks . | . . . . . Terminals . | . . . . . Fabricators . | . . . . . Repair Stations . | . . . . . Recycling Units . | . . . . . Scanalyzers . | . . . . . Garrison Access . | . . . . . Data Cores Recovered . | . . . . . Used . | . . . . . Hacking Detections . | . . . . . Full Trace Events . | . . . . . Feedback Events . | . . . . . Feedback Blocked . | . . . . . Robot Schematics Acquired . | . . . . . Robots Built . | . . . . . Authchips . | . . . . . Time . | . . . . . Total Robot Build Rating . | . . . . . Part Schematics Acquired . | . . . . . Parts Built . | . . . . . Authchips . | . . . . . Time . | . . . . . Total Part Build Rating . | . . . . . Part Studies Acquired . | . . . . . Parts Repaired . | . . . . . Time . | . . . . . Parts Recycled . | . . . . . Recycled Matter . | . . . . . Retrieved Matter . | . . . . . Retrieved Components . | . . . . . Parts Scanalyzed . | . . . . . Part Schematics Acquired . | . . . . . Parts Damaged . | . . . . . Bothacking | -11 -10 -10 -10 -9 ------------ Run | Yrd Mat Min Exi Min Used RIF Installer . | . . . . . Robots Hacked . | . . . . . Non-combat . | . . . . . Combat . | . . . . . Robot Hacks Applied . | . . . . . Relay Couplers Released . | . . . . . Fabnet Peak Effective % . | . . . . . Robots Rewired . | . . . . . Allies Hacked . | . . . . . Hacks Repelled . | . . . . . Allies | -11 -10 -10 -10 -9 -------- Run | Yrd Mat Min Exi Min Total Allies . | . . . . . Largest Group . | . . . . . Highest-Rated Group . | . . . . . Highest-Rated Ally . | . . . . . Total Orders . | . . . . . Ally Attacks . | . . . . . Total Damage . | . . . . . Kills . | . . . . . Allies Corrupted . | . . . . . Allies Melted . | . . . . . Intel | -11 -10 -10 -10 -9 ------- Run | Yrd Mat Min Exi Min Active Infowar (turns) . | . . . . . Robot Analysis Total . | . . . . . Derelict Logs Recovered . | . . . . . Drone Launches . | . . . . . Drone Recoveries . | . . . . . Exploration | -11 -10 -10 -10 -9 ------------- Run | Yrd Mat Min Exi Min Turns Passed 313 | 15 21 84 115 78 Spaces Moved 527 | 29 41 135 227 95 Core 527 | 29 41 135 227 95 Treads . | . . . . . Legs . | . . . . . Wheels . | . . . . . Hover . | . . . . . Flight . | . . . . . Fastest Speed 50 | 50 50 50 50 50 Average Speed 51 | 50 50 50 50 60 Slowest Speed 150 | 50 50 50 50 150 Overloaded Moves . | . . . . . Propulsion Burnouts . | . . . . . Robots Hopped . | . . . . . Potential Cave-ins . | . . . . . Cave-ins Triggered . | . . . . . Exploration Rate (%) 29 | 3 12 40 63 28 Regions Visited 4 Branch Regions 3 Pre-discovered Areas 1 | . . . 1 . Known Exits Taken . | . . . . . Unknown Exits Taken 4 | 1 1 1 1 . Scrap Searched 1 | . . 1 . . Spaces Dug . | . . . . . Terrain Destroyed . | . . . . . Melee . | . . . . . Projectile . | . . . . . AOE . | . . . . . Terrain Rammed . | . . . . . Walls Destroyed . | . . . . . Machines Disabled . | . . . . . Actions | -11 -10 -10 -10 -9 --------- Run | Yrd Mat Min Exi Min Total 561 | 28 40 150 227 116 Wait 23 | . . 16 . 7 Move 523 | 28 40 134 226 95 Hop . | . . . . . Pick Up 3 | . . . 1 2 Fast Attach 2 | . . . . 2 Attach 2 | . . . . 2 Detach 2 | . . . . 2 Swap . | . . . . . Drop 1 | . . . . 1 Fire . | . . . . . Melee 1 | . . . . 1 Ram 4 | . . . . 4 Kick . | . . . . . Crush . | . . . . . Escape Stasis . | . . . . . Rewire . | . . . . . Trap . | . . . . . Miscellaneous . | . . . . . Route ------- -11/Scrapyard -10/Materials -10/Mines (discovered 2 exits: [*Mat] / *Exi) -10/Exiles -9/Mines History --------- Turn | Location | Event 4 | -11/Scrapyard | Discovered new exit (range 14) 16 | -11/Scrapyard | Entered Materials 28 | -10/Materials | Discovered new exit (range 3) 37 | -10/Materials | Entered Mines 91 | -10/Mines | Discovered new exit (range 8) 96 | -10/Mines | Core integrity fell below 50% 102 | -10/Mines | Deemed a non-threat by the Exiles lab entrance 102 | -10/Mines | Discovered new exit (range 5) 121 | -10/Mines | Entered Exiles 134 | -10/Exiles | Met 8R-AWN 142 | -10/Exiles | Met EX-HEX 156 | -10/Exiles | Met EX-BIN 164 | -10/Exiles | Aligned with FarCom system 164 | -10/Exiles | Given EX-Vault access code 178 | -10/Exiles | Opened EX-Vault 180 | -10/Exiles | Found Longsword +1 192 | -10/Exiles | Warned to stay clear of 0b10 Research branches 200 | -10/Exiles | Exiles lab attacked by MAIN.C 216 | -10/Exiles | Learned location of Zion (-6) 231 | -10/Exiles | Discovered new exit (range 10) 236 | -10/Exiles | Left Exiles lab with Longsword +1 236 | -10/Exiles | Entered Mines 261 | -9/Mines | Assembled infested the area 266 | -9/Mines | Assisted by a Guerilla fighting off Assembled 312 | -9/Mines | Core integrity fell below 20% 314 | -9/Mines | Destroyed by as-80238 with Assembled Blade Last Messages --------------- 00246_ K-01 Serf collects debris. 00246_ Acquired 10 matter. 00247_ K-01 Serf collects debris. 00249_ Acquired Mak. Axe. 00250_ K-01 Serf collects debris. 00261_ ALERT: Infestation in the mines, dispatching Demolisher response squad. 00266_ A derelict emerges from the shadows: "You need to get out of here! I've been tracking a group of Assembled to figure out where they're coming from, and they're closing on this area, come on!" 00266_ Dropped Mak. Axe. 00267_ Acquired Mak. Axe. 00287_ R-06 Scavenger destroyed. 00292_ K-01 Serf collects debris. 00304_ as-80238 sneak attacks. 00304_ K-01 Serf destroyed. 00309_ Longsword +1 severed. 00310_ Slammed into as-80238. 00314_ Acquired Longsword +1. Map ----- +----------------------------------------------------+ | ?????????????????????????????????????????????????? | | ?????????????????????????????????????????????????? | | ?????????????????????????????????????????????????? | | ?????????????????????????????????????????????????? | | ?????????????????????????????????????????????????? | | ?????????????????????????????????????????????????? | | ?????????????????????????????????????????????????? | | ?????????????????????????????????????????????????? | | ?????????????????????????????????????????????????? | | ?????????????????????????????????????????????????? | | ?????????????????????????????????????????????????? | | ?????????????????????????????????????????????????? | | ??????????! ????????????????????????????????????? | | ?????????*%!?????????????????????????????????????? | | ????????? =#?????????????????????????????????????? | | ????????? #?????????????????????????????????????? | | ?????#### #?????????????????????????????????????? | | ????##$!% ######????????????????????????????????? | | ????# = ##???????????????????????????????? | | ##?## #???????????????????????????????? | | ## #???????????????????????????????? | | #???????????????????????????????? | | #????????????????????????????????? | | #??####???????????????????????????? | | #### ##?####?????????????????????? | | ## ###@%##????????????????????? | | aa #????????????????????? | | #????????????????????? | | # ## ##????????????????????? | | ## #### %! ##?????????????????????? | | ?###???# * ##??????????????????????? | | ???????## #???????????????????????? | | ????????# ##??????????????????????? | | ???###?## ### #??????????????????????? | | ??## ## ##?### #??????????????????????? | | ??# ##????## #??????????????????????? | | ?## ##?????## #??????????????????????? | | ?# ##??????# #??????????????????????? | | ?# #???????# #??????????????????????? | | ?## ##???????# #??????????????????????? | | ??## ##????????# ##??????????????????????? | | ???# ##????????# ##???????????????????????? | | ??## #????????# #????????????????????????? | | ?## #??????###% ###??????????????????????? | | ?# #??????# #??????????????????????? | | ?# ##??????# #??????????????????????? | | ?# #???????# #??????????????????????? | | ?## ##???????# #??????????????????????? | | ??## #????????# #??????????????????????? | | ???# #????????########??????????????????????? | +----------------------------------------------------+ Best States ------------- Heat Dissipation 25 Energy Generation 15 Energy Capacity 170 Matter Stores 300 Matter Capacity 300 Sight Range 16 Terrain Scan Density 10 Evasion (%) 50 Item Schematics ----------------- None Robot Schematics ------------------ None Fabricated ------------ Nothing Repaired ---------- Nothing Studied --------- None Alien Tech Used ----------------- None Achievements -------------- None Challenges ------------ None Game ------ Seed DoorLaunchBooster Manual? 0 Play Time 00:04:07 Cumulative 67.9 hours Start 2026.06.28 @ 15:06:21 End 2026.06.28 @ 15:09:26 Sessions 1 Manual Loads 0 Difficulty Rogue Special Mode None Game No. 213 Rogue 213 Adventurer 0 Explorer 0 Win Type - Total 0 Types 0/0/0/0/0/0/0/0/0/0 Lore% 63 Gallery% 37 Achievement% 36 Wizard Run 0 Options --------- Layout 0 ASCII 0 Keyboard 1 Movement Arrows Keybinds 0 Fullscreen 1 Font 24/Terminus Map View 64x52 Zoom Use 0% Tactical HUD 1 Map Filters NONE Filters NONE Steam 1 RUN: 73bb8519-0902-4c8a-8140-95f3f29cd8ba